fUSD/lending_fUSD_20240330
["ID","MTS","AMOUNT","RATE_DAILY","PERIOD"]
[321023095,1711786245421,-1506.17,0.00046575,4]
[321023096,1711786245434,-2623.63,0.00046575,4]
[321023097,1711786245445,-1506.17,0.00046575,4]
[321023098,1711786245455,-500.0,0.00046575,4]
[321023099,1711786245467,-1506.17,0.00046575,4]
[321023100,1711786245479,-1506.17,0.00046575,4]
[321023101,1711786245489,-500.0,0.00046575,4]
[321023102,1711786245499,-1506.17,0.00046575,4]
[321023103,1711786245509,-500.0,0.00046575,4]
[321023104,1711786245519,-500.0,0.00046575,4]
[321023105,1711786245529,-1506.17,0.00046575,4]
[321023106,1711786245539,-2066.88,0.00046575,4]
[321023107,1711786245550,-2673.78,0.00046575,4]
[321023108,1711786245561,-500.0,0.00046575,4]
[321023109,1711786245571,-10832.21,0.00046575,4]
[321023110,1711786245580,-500.0,0.00046575,4]
[321023111,1711786245590,-1007.41,0.00046575,4]
[321023112,1711786245600,-500.0,0.00046575,4]
[321023113,1711786245610,-3272.85,0.00046575,4]
[321023114,1711786245620,-500.0,0.00046575,4]
[321023115,1711786245630,-500.0,0.00046575,4]
[321023116,1711786245640,-500.0,0.00046575,4]
[321023117,1711786245649,-500.0,0.00046575,4]
[321023118,1711786245659,-500.0,0.00046575,4]
[321023119,1711786245669,-500.0,0.00046575,4]
[321023120,1711786245679,-3263.25,0.00046575,4]
[321023121,1711786245689,-500.0,0.00046575,4]
[321023122,1711786245699,-500.0,0.00046575,4]
[321023123,1711786245708,-500.0,0.00046575,4]
[321023124,1711786245718,-1081.89,0.00046575,4]
[321023125,1711786245727,-500.0,0.00046575,4]
[321023126,1711786245736,-569.06,0.00046575,4]
[321023127,1711786245745,-4196.55,0.00046575,4]
[321023128,1711786245755,-500.0,0.00046575,4]
[321023129,1711786245765,-500.0,0.00046575,4]
[321023130,1711786245774,-605.49,0.00046575,4]
[321023131,1711786245961,-512.62792353,0.00046575,4]
[321023132,1711786245980,-500.0,0.00046575,4]
[321023133,1711786245990,-936.01,0.00046575,4]
[321023134,1711786246000,-500.0,0.00046575,4]
[321023136,1711786246009,-500.0,0.00046575,4]
[321023138,1711786246018,-500.0,0.00046575,4]
[321023140,1711786246028,-500.0,0.00046575,4]
[321023141,1711786246037,-500.0,0.00046575,4]
[321023142,1711786246047,-1653.52,0.00046575,4]
[321023143,1711786246056,-3206.49,0.00046575,4]
[321023144,1711786246066,-500.0,0.00046575,4]
[321023145,1711786246075,-500.0,0.00046575,4]
[321023146,1711786246085,-500.0,0.00046575,4]
[321023147,1711786246094,-507.14320978,0.00046575,4]
[321023148,1711786246103,-500.0,0.00046575,4]
[321023149,1711786246112,-5058.51,0.00046575,4]
[321023151,1711786246121,-500.0,0.00046575,4]
[321023152,1711786246131,-500.0,0.00046575,4]
[321023154,1711786246140,-249.28522858,0.00046575,4]
[321023155,1711786246149,-500.0,0.00046575,4]
[321023156,1711786246159,-506.92444976,0.00046575,4]
[321023157,1711786246168,-4553.71,0.00046575,4]
[321023158,1711786246177,-500.0,0.00046575,4]
[321023159,1711786246186,-500.0,0.00046575,4]
[321023160,1711786246196,-1946.79,0.00046575,4]
[321023161,1711786246205,-1002.2,0.00046575,4]
[321023162,1711786246215,-500.0,0.00046575,4]
[321023163,1711786246225,-500.0,0.00046575,4]
[321023164,1711786246234,-500.0,0.00046575,4]
[321023165,1711786246243,-1077.7,0.00046575,4]
[321023166,1711786246255,-511.20001776,0.00046575,4]
[321023167,1711786246265,-500.0,0.00046575,4]
[321023168,1711786246276,-500.0,0.00046575,4]
[321023169,1711786246286,-500.0,0.00046575,4]
[321023170,1711786246295,-500.0,0.00046575,4]
[321023171,1711786246307,-2056.19,0.00046575,4]
[321023172,1711786246319,-500.0,0.00046575,4]
[321023173,1711786246328,-500.0,0.00046575,4]
[321023174,1711786246338,-500.0,0.00046575,4]
[321023175,1711786246347,-500.0,0.00046575,4]
[321023176,1711786246357,-500.0,0.00046575,4]
[321023177,1711786246366,-510.09863348,0.00046575,4]
[321023178,1711786246375,-500.0,0.00046575,4]
[321023179,1711786246384,-500.0,0.00046575,4]
[321023180,1711786246394,-1574.27,0.00046575,4]
[321023181,1711786246406,-661.2,0.00046575,4]
[321023182,1711786246416,-500.0,0.00046575,4]
[321023183,1711786246426,-510.64897878,0.00046575,4]
[321023184,1711786246439,-1968.82,0.00046575,4]
[321023185,1711786246449,-500.0,0.00046575,4]
[321023186,1711786246460,-500.0,0.00046575,4]
[321023187,1711786246471,-1871.39,0.00046575,4]
[321023188,1711786246483,-546.38,0.00046575,4]
[321023189,1711786246493,-500.0,0.00046575,4]
[321023190,1711786246503,-774.06,0.00046575,4]
[321023191,1711786246513,-500.0,0.00046575,4]
[321023192,1711786246523,-500.0,0.00046575,4]
[321023193,1711786246532,-500.0,0.00046575,4]
[321023194,1711786246542,-1206.04,0.00046575,4]
[321023195,1711786246553,-512.96548028,0.00046575,4]
[321023196,1711786246562,-453.93726219,0.00046575,4]
[321023197,1711786246572,-500.0,0.00046575,4]
[321023198,1711786246582,-840.04,0.00046575,2]
[321023199,1711786246592,-500.0,0.00046575,4]
[321023200,1711786246602,-580.76,0.00046575,4]
[321023201,1711786246613,-769.7,0.00046575,4]
[321023202,1711786246622,-500.0,0.00046575,4]
[321023203,1711786246632,-500.0,0.00046575,4]
[321023204,1711786246642,-511.0775727,0.00046575,4]
[321023205,1711786246653,-500.0,0.00046575,4]
[321023206,1711786246662,-503.61120233,0.00046575,4]
[321023207,1711786246672,-2532.02,0.00046575,4]
[321023208,1711786246683,-500.0,0.00046575,4]
[321023209,1711786246692,-500.0,0.00046575,4]
[321023210,1711786246702,-500.0,0.00046575,4]
[321023211,1711786246712,-500.0,0.00046575,4]
[321023212,1711786246721,-529.42720546,0.00046575,4]
[321023213,1711786246731,-500.0,0.00046575,4]
[321023214,1711786246741,-663.85,0.00046575,4]
[321023215,1711786246750,-1417.33,0.00046575,4]
[321023216,1711786246759,-500.0,0.00046575,4]
[321023217,1711786246769,-500.0,0.00046575,4]
[321023218,1711786246778,-497.64797267,0.00046575,2]
[321023219,1711786246787,-500.0,0.00046575,4]
[321023220,1711786246797,-500.0,0.00046575,4]
[321023221,1711786246807,-500.0,0.00046575,4]
[321023222,1711786246817,-500.0,0.00046575,2]
[321023223,1711786246827,-500.0,0.00046575,4]
[321023224,1711786246837,-645.03631567,0.00046575,4]
[321023225,1711786246847,-691.49,0.00046575,4]
[321023226,1711786246857,-500.0,0.00046575,4]
[321023227,1711786246866,-4933.38,0.00046575,4]
[321023228,1711786246877,-500.0,0.00046575,4]
[321023229,1711786246888,-500.0,0.00046575,4]
[321023230,1711786246898,-500.0,0.00046575,4]
[321023231,1711786246907,-164.7982695,0.00046575,4]
[321023232,1711786246917,-500.0,0.00046575,4]
[321023233,1711786246927,-500.0,0.00046575,4]
[321023234,1711786246937,-364.32618722,0.00046575,4]
[321023235,1711786246946,-500.0,0.00046575,4]
[321023236,1711786246956,-3302.0,0.00046575,4]
[321023237,1711786246967,-500.0,0.00046575,4]
[321023238,1711786246977,-500.0,0.00046575,4]
[321023239,1711786246986,-500.0,0.00046575,4]
[321023240,1711786246996,-500.0,0.00046575,2]
[321023241,1711786247006,-500.0,0.00046575,4]
[321023242,1711786247057,-500.0,0.00046575,4]
[321023243,1711786247066,-818.93,0.00046575,4]
[321023244,1711786247077,-500.0,0.00046575,4]
[321023245,1711786247088,-823.07,0.00046575,4]
[321023246,1711786247098,-2524.9,0.00046575,4]
[321023247,1711786247108,-500.0,0.00046575,4]
[321023248,1711786247120,-500.0,0.00046575,4]
[321023249,1711786247131,-500.0,0.00046575,4]
[321023250,1711786247142,-500.0,0.00046575,4]
[321023251,1711786247153,-500.0,0.00046575,4]
[321023252,1711786247164,-500.0,0.00046575,4]
[321023253,1711786247174,-500.0,0.00046575,4]
[321023254,1711786247185,-500.0,0.00046575,4]
[321023255,1711786247196,-500.0,0.00046575,4]
[321023256,1711786247207,-500.0,0.00046575,4]
[321023257,1711786247218,-503.48841133,0.00046575,4]
[321023258,1711786247229,-500.0,0.00046575,4]
[321023259,1711786247239,-500.0,0.00046575,4]
[321023260,1711786247248,-500.0,0.00046575,4]
[321023261,1711786247257,-951.39,0.00046575,4]
[321023262,1711786247267,-500.0,0.00046575,4]
[321023263,1711786247277,-3556.72,0.00046575,4]
[321023264,1711786247288,-500.0,0.00046575,4]
[321023265,1711786247298,-732.69,0.00046575,4]
[321023266,1711786247309,-500.0,0.00046575,4]
[321023267,1711786247320,-500.0,0.00046575,4]
[321023268,1711786247330,-813.45,0.00046575,4]
[321023269,1711786247340,-511.74879967,0.00046575,4]
[321023270,1711786247350,-500.0,0.00046575,4]
[321023271,1711786247360,-500.0,0.00046575,4]
[321023272,1711786247370,-504.75502345,0.00046575,4]
[321023273,1711786247382,-1605.61,0.00046575,4]
[321023274,1711786247394,-500.0,0.00046575,4]
[321023275,1711786247411,-500.0,0.00046575,2]
[321023276,1711786247422,-500.0,0.00046575,4]
[321023277,1711786247433,-500.0,0.00046575,4]
[321023278,1711786247444,-500.0,0.00046575,4]
[321023279,1711786247455,-861.99,0.00046575,4]
[321023280,1711786247466,-749.33,0.00046575,4]
[321023281,1711786247478,-501.88374543,0.00046575,4]
[321023282,1711786247490,-93000.0,0.00046575,30]
[321023283,1711786247499,-153.72335322,0.00046575,30]
[321023284,1711786247510,-900.0,0.00046679,30]
[321023285,1711786247519,-600.0,0.00046679,30]
[321023286,1711786247530,-156.96928883,0.00046749,2]
[321023287,1711786247539,-4144.17555855,0.00046749,22]
[321023288,1711786247549,-1900.0,0.000468,17]
[321023289,1711786247559,-203.0,0.00046819,15]
[321023290,1711786247568,-203.0,0.00046829,15]
[321023291,1711786247578,-203.0,0.00046839,15]
[321023292,1711786247591,-500.0,0.00046849,4]
[321023293,1711786247601,-500.0,0.00046849,4]
[321023294,1711786247611,-500.0,0.00046849,4]
[321023295,1711786247621,-500.0,0.00046849,4]
[321023296,1711786247632,-590.68534725,0.00046849,4]
[321023297,1711786247642,-500.0,0.00046849,4]
[321023298,1711786247652,-500.0,0.00046849,4]
[321023299,1711786247661,-500.0,0.00046849,4]
[321023300,1711786247671,-500.0,0.00046849,4]
[321023301,1711786247681,-327.78753065,0.00046849,4]
[321023302,1711786247690,-500.0,0.00046849,4]
[321023303,1711786247701,-500.0,0.00046849,4]
[321023304,1711786247711,-500.0,0.00046849,4]
[321023305,1711786247722,-327.18904546,0.00046849,4]
[321023306,1711786247732,-500.0,0.00046849,4]
[321023307,1711786247742,-500.0,0.00046849,4]
[321023308,1711786247752,-500.0,0.00046849,4]
[321023309,1711786247762,-1048.82,0.00046849,4]
[321023310,1711786247773,-500.0,0.00046849,4]
[321023311,1711786247783,-958.11,0.00046849,4]
[321023312,1711786247793,-500.0,0.00046849,4]
[321023313,1711786247803,-500.0,0.00046849,4]
[321023314,1711786247812,-500.0,0.00046849,4]
[321023315,1711786247823,-509.34581779,0.00046849,4]
[321023316,1711786247833,-500.0,0.00046849,4]
[321023317,1711786247843,-500.0,0.00046849,4]
[321023318,1711786247853,-500.0,0.00046849,4]
[321023319,1711786247862,-500.0,0.00046849,4]
[321023320,1711786247872,-500.0,0.00046849,4]
[321023321,1711786247881,-500.0,0.00046849,4]
[321023322,1711786247891,-885.72,0.00046849,4]
[321023323,1711786247900,-523.7541288,0.00046849,4]
[321023324,1711786247910,-500.0,0.00046849,4]
[321023325,1711786247919,-500.0,0.00046849,4]
[321023326,1711786247929,-831.54,0.00046849,4]
[321023327,1711786247939,-500.0,0.00046849,4]
[321023328,1711786247948,-500.0,0.00046849,4]
[321023329,1711786247957,-500.0,0.00046849,4]
[321023330,1711786247966,-500.0,0.00046849,4]
[321023331,1711786247976,-500.0,0.00046849,4]
[321023332,1711786247985,-500.0,0.00046849,4]
[321023333,1711786247994,-509.29520874,0.00046849,4]
[321023334,1711786248003,-521.96441603,0.00046849,4]
[321023335,1711786248012,-500.0,0.00046849,4]
[321023336,1711786248022,-500.0,0.00046849,4]
[321023337,1711786248032,-500.0,0.00046849,4]
[321023338,1711786248041,-500.0,0.00046849,4]
[321023339,1711786248051,-500.0,0.00046849,4]
[321023340,1711786248060,-500.0,0.00046849,4]
[321023341,1711786248070,-500.0,0.00046849,4]
[321023342,1711786248079,-500.0,0.00046849,4]
[321023343,1711786248088,-500.0,0.00046849,4]
[321023344,1711786248097,-500.0,0.00046849,4]
[321023345,1711786248106,-500.0,0.00046849,4]
[321023346,1711786248116,-500.0,0.00046849,4]
[321023347,1711786248125,-500.0,0.00046849,4]
[321023348,1711786248134,-500.0,0.00046849,2]
[321023349,1711786248144,-500.0,0.00046849,4]
[321023350,1711786248153,-500.0,0.00046849,4]
[321023351,1711786248162,-500.0,0.00046849,4]
[321023352,1711786248173,-525.05434971,0.00046849,4]
[321023353,1711786248184,-500.0,0.00046849,4]
[321023354,1711786248194,-500.0,0.00046849,4]
[321023355,1711786248204,-500.0,0.00046849,4]
[321023356,1711786248215,-961.79,0.00046849,4]
[321023357,1711786248226,-500.0,0.00046849,4]
[321023358,1711786248238,-506.73092976,0.00046849,4]
[321023359,1711786248248,-500.0,0.00046849,4]
[321023360,1711786248258,-500.0,0.00046849,4]
[321023361,1711786248268,-500.0,0.00046849,4]
[321023362,1711786248278,-500.0,0.00046849,4]
[321023363,1711786248288,-279.3,0.00046849,4]
[321023364,1711786248298,-500.0,0.00046849,4]
[321023365,1711786248308,-500.0,0.00046849,4]
[321023366,1711786248317,-513.46372449,0.00046849,4]
[321023367,1711786248328,-500.0,0.00046849,4]
[321023368,1711786248338,-500.0,0.00046849,4]
[321023369,1711786248348,-500.0,0.00046849,4]
[321023370,1711786248359,-500.0,0.00046849,4]
[321023371,1711786248369,-777.22,0.00046849,4]
[321023372,1711786248379,-500.0,0.00046849,4]
[321023373,1711786248390,-500.0,0.00046849,4]
[321023374,1711786248403,-563.3222232,0.00046849,4]
[321023375,1711786248413,-500.0,0.00046849,4]
[321023376,1711786248424,-500.0,0.00046849,4]
[321023377,1711786248435,-500.0,0.00046849,4]
[321023378,1711786248444,-500.0,0.00046849,4]
[321023379,1711786248455,-500.0,0.00046849,4]
[321023380,1711786248465,-500.0,0.00046849,4]
[321023381,1711786248476,-500.0,0.00046849,4]
[321023382,1711786248487,-500.0,0.00046849,4]
[321023383,1711786248497,-624.67,0.00046849,4]
[321023384,1711786248507,-500.0,0.00046849,4]
[321023385,1711786248517,-168.41369189,0.00046849,4]
[321023386,1711786248527,-500.0,0.00046849,4]
[321023387,1711786248537,-500.0,0.00046849,4]
[321023388,1711786248548,-513.43709255,0.00046849,4]
[321023389,1711786248559,-513.5745617,0.00046849,4]
[321023390,1711786248569,-500.0,0.00046849,4]
[321023391,1711786248578,-500.0,0.00046849,4]
[321023392,1711786248588,-500.0,0.00046849,4]
[321023393,1711786248599,-500.0,0.00046849,4]
[321023394,1711786248608,-500.0,0.00046849,4]
[321023395,1711786248618,-500.0,0.00046849,4]
[321023396,1711786248628,-500.0,0.00046849,4]
[321023397,1711786248638,-500.0,0.00046849,4]
[321023398,1711786248648,-514.82743393,0.00046849,4]
[321023399,1711786248658,-500.0,0.00046849,4]
[321023400,1711786248668,-500.0,0.00046849,4]
[321023401,1711786248678,-500.0,0.00046849,4]
[321023402,1711786248687,-504.29865734,0.00046849,4]
[321023403,1711786248698,-667.04,0.00046849,4]
[321023404,1711786248708,-749.7,0.00046849,4]
[321023405,1711786248718,-507.30092242,0.00046849,4]
[321023406,1711786248728,-500.0,0.00046849,4]
[321023407,1711786248738,-544.7162699,0.00046849,4]
[321023408,1711786248748,-500.0,0.00046849,4]
[321023409,1711786248760,-500.0,0.00046849,4]
[321023410,1711786248770,-500.0,0.00046849,4]
[321023411,1711786248780,-500.0,0.00046849,4]
[321023412,1711786248790,-500.0,0.00046849,4]
[321023413,1711786248799,-500.0,0.00046849,4]
[321023414,1711786248808,-500.0,0.00046849,4]
[321023415,1711786248818,-924.4,0.00046849,4]
[321023416,1711786248827,-1198.55,0.00046849,4]
[321023417,1711786248836,-500.0,0.00046849,4]
[321023418,1711786248845,-500.0,0.00046849,4]
[321023419,1711786248854,-551.42601931,0.00046849,4]
[321023420,1711786248864,-500.0,0.00046849,4]
[321023421,1711786248873,-500.0,0.00046849,4]
[321023422,1711786248883,-500.0,0.00046849,4]
[321023423,1711786248893,-500.0,0.00046849,4]
[321023424,1711786248902,-500.0,0.00046849,4]
[321023425,1711786248911,-500.0,0.00046849,4]
[321023426,1711786248921,-500.0,0.00046849,4]
[321023427,1711786249088,-500.0,0.00046849,4]
[321023428,1711786249099,-500.0,0.00046849,4]
[321023429,1711786249110,-500.0,0.00046849,4]
[321023430,1711786249120,-500.0,0.00046849,4]
[321023431,1711786249134,-500.0,0.00046849,4]
[321023432,1711786249144,-500.0,0.00046849,4]
[321023433,1711786249154,-500.0,0.00046849,4]
[321023434,1711786249164,-500.0,0.00046849,4]
[321023435,1711786249174,-500.0,0.00046849,4]
[321023436,1711786249184,-567.0,0.00046849,4]
[321023437,1711786249194,-500.0,0.00046849,4]
[321023438,1711786249203,-500.0,0.00046849,4]
[321023439,1711786249214,-2681.58,0.00046849,4]
[321023440,1711786249224,-500.0,0.00046849,4]
[321023441,1711786249234,-500.0,0.00046849,4]
[321023442,1711786249243,-500.0,0.00046849,4]
[321023443,1711786249255,-500.0,0.00046849,4]
[321023444,1711786249266,-500.0,0.00046849,4]
[321023445,1711786249276,-500.0,0.00046849,4]
[321023446,1711786249286,-500.0,0.00046849,4]
[321023447,1711786249296,-657.06,0.00046849,4]
[321023448,1711786249307,-500.0,0.00046849,4]
[321023449,1711786249316,-586.27,0.00046849,4]
[321023450,1711786249326,-500.0,0.00046849,4]
[321023451,1711786249336,-777.35,0.00046849,4]
[321023452,1711786249346,-514.44744657,0.00046849,4]
[321023453,1711786249356,-500.0,0.00046849,4]
[321023454,1711786249366,-500.0,0.00046849,4]
[321023455,1711786249376,-1373.93,0.00046849,4]
[321023456,1711786249386,-624.33,0.00046849,4]
[321023457,1711786249399,-500.0,0.00046849,4]
[321023458,1711786249410,-500.0,0.00046849,4]
[321023459,1711786249421,-529.04857023,0.00046849,4]
[321023460,1711786249431,-859.93,0.00046849,4]
[321023461,1711786249442,-500.0,0.00046849,4]
[321023462,1711786249452,-511.51254602,0.00046849,4]
[321023463,1711786249462,-500.0,0.00046849,4]
[321023464,1711786249473,-517.0914889,0.00046849,4]
[321023465,1711786249484,-2253.1,0.00046849,4]
[321023466,1711786249494,-500.0,0.00046849,4]
[321023467,1711786249503,-500.0,0.00046849,4]
[321023468,1711786249513,-500.0,0.00046849,4]
[321023469,1711786249523,-319.94387889,0.00046849,4]
[321023470,1711786250275,-442.115,0.00041799,60]
[321023471,1711786250919,-415.29992,0.00041799,60]
[321023472,1711786251021,-961.6833266,0.00041799,60]
[321023473,1711786251032,-38.88951365,0.00046575,4]
[321023474,1711786251049,-5917.76994183,0.00046575,4]
[321023475,1711786251595,223.94252704,0.00024,2]
[321023476,1711786252032,-2332.55,0.00041688,10]
[321023477,1711786252043,-156.60898107,0.00041798,4]
[321023478,1711786252053,-217.03101893,0.00041798,4]
[321023479,1711786252077,-286.07270811,0.00041798,4]
[321023480,1711786252088,-340.52396705,0.00041798,4]
[321023481,1711786252100,-363.30784378,0.00041798,4]
[321023482,1711786252112,-457.02454666,0.00041798,4]
[321023483,1711786252122,-169.97309039,0.00045034,4]
[321023484,1711786252204,-67.71932817,0.00045034,4]
[321023485,1711786252217,-751.00893907,0.00046575,4]
[321023486,1711786272951,1096.84487041,0.00031406,4]
[321023487,1711786275875,773.66262312,0.00031406,4]
[321023488,1711786276910,291.47525254,0.00031406,2]
[321023489,1711786358021,250.0,0.00033,3]
[321023490,1711786358628,300.0,0.00035,3]
[321023491,1711786406541,6300.0,0.00042203,120]
[321023493,1711786664965,166.89,0.00034464,2]
[321023527,1711787432370,-547.00528908,0.00036844,2]
[321023529,1711787432380,-1667.39377646,0.00036845,4]
[321023530,1711787432389,-542.49680733,0.00036846,4]
[321023531,1711787432398,-1418.22960456,0.00036847,4]
[321023533,1711787432408,-559.82471816,0.00036847,4]
[321023535,1711787432418,-1500.0,0.00036848,4]
[321023537,1711787432427,-4095.6172527,0.00036848,15]
[321023539,1711787432436,-459.05160093,0.00036848,4]
[321023541,1711787432446,-6015.8746,0.00036851,2]
[321023543,1711787432455,-4802.8516,0.00036854,2]
[321023545,1711787432464,-2150.0,0.00036948,2]
[321023547,1711787432474,-350.0,0.00037,3]
[321023549,1711787432484,-1173.02292292,0.00037523,4]
[321023551,1711787432496,-711.50594824,0.00037526,4]
[321023553,1711787432505,-499.99,0.000399,2]
[321023555,1711787432514,-3358.9042011,0.0004,4]
[321023557,1711787432523,-2813.0,0.0004,2]
[321023559,1711787432533,-192.42249593,0.0004,2]
[321023561,1711787432542,-380.0,0.000404,2]
[321023563,1711787432552,-702.49,0.00040897,2]
[321023565,1711787432561,-500.0,0.00041598,2]
[321023567,1711787432570,-1481.49786274,0.00041797,4]
[321023569,1711787432579,-194.38462144,0.00041797,4]
[321023571,1711787432589,-1960.0660341,0.00041797,4]
[321023573,1711787432598,-359.00578099,0.00041798,4]
[321023575,1711787432607,-541.85677036,0.00042203,120]
[321023577,1711787432617,-197.14054978,0.00042203,4]
[321023579,1711787432627,-250.0,0.00042781,2]
[321023582,1711787432637,-409.82264037,0.00042801,2]
[321023584,1711787432647,-362.93,0.00042828,2]
[321023586,1711787432656,-167.32,0.00042844,2]
[321023588,1711787432666,-200.0,0.00042846,2]
[321023590,1711787432677,-311.73,0.00042868,2]
[321023592,1711787432686,-156.71,0.00042881,2]
[321023594,1711787432696,-3169.17014867,0.00042896,2]
[321023595,1711787432726,-15813.33539969,0.00042896,2]
[321023596,1711787432739,-4917.49445164,0.00042896,2]
[321023597,1711787432749,-165.22,0.00042901,120]
[321023599,1711787432761,-1000.0,0.00042901,2]
[321023601,1711787432770,-250.0,0.00042904,2]
[321023603,1711787432779,-2841.2,0.00042968,2]
[321023605,1711787432789,-250.0,0.00043048,112]
[321023607,1711787432799,-204.82,0.00043068,2]
[321023609,1711787432808,-180.0,0.00043069,2]
[321023610,1711787432817,-166.96,0.0004308,15]
[321023612,1711787432827,-702.49,0.00043161,2]
[321023614,1711787432838,-155.57,0.00043276,2]
[321023616,1711787432849,-159.54,0.00043278,2]
[321023618,1711787432858,-155.57,0.00043298,2]
[321023620,1711787432867,-155.57,0.0004332,2]
[321023622,1711787432877,-155.57,0.00043341,2]
[321023625,1711787432885,-155.57,0.00043363,2]
[321023628,1711787432895,-155.57,0.00043385,2]
[321023631,1711787432904,-155.57,0.00043406,2]
[321023633,1711787432913,-155.57,0.00043428,2]
[321023635,1711787432923,-155.57,0.0004345,2]
[321023637,1711787432933,-296.3,0.00043458,2]
[321023640,1711787432943,-155.57,0.00043471,2]
[321023641,1711787432953,-155.57,0.00043493,2]
[321023644,1711787432963,-200.0,0.00043656,2]
[321023646,1711787432972,-649.37,0.00043793,2]
[321023648,1711787432982,-159.54,0.00044406,2]
[321023649,1711787432991,-409.82264035,0.00044551,2]
[321023651,1711787433001,-4023.63021075,0.00044569,2]
[321023652,1711787433010,-3368.5161918,0.000448,2]
[321023653,1711787433019,-5000.0,0.00044986,4]
[321023654,1711787433029,-10402.63138261,0.00045,5]
[321023655,1711787433038,-225.52100826,0.00045,110]
[321023656,1711787433047,-702.49,0.00045425,2]
[321023657,1711787433056,-150.0,0.000455,8]
[321023658,1711787433066,-159.54,0.00045533,2]
[321023659,1711787433075,-362.93,0.00045567,2]
[321023660,1711787433085,-800.0,0.00045583,30]
[321023661,1711787433094,-166.96,0.0004582,15]
[321023662,1711787433104,-399.71,0.00045889,2]
[321023663,1711787433113,-1943.79,0.0004599,10]
[321023664,1711787433123,-1000.0,0.00046,5]
[321023665,1711787433133,-476.89984052,0.00046,30]
[321023666,1711787433142,-150.0,0.00046,8]
[321023667,1711787433152,-150.0,0.00046,8]
[321023668,1711787433161,-800.0,0.00046131,30]
[321023669,1711787433170,-2500.0,0.0004629,2]
[321023670,1711787433179,-200.0,0.000463,16]
[321023671,1711787433189,-4208.25187531,0.000463,2]
[321023672,1711787433198,-409.82264035,0.000463,2]
[321023673,1711787433208,-14537.7872919,0.0004633,2]
[321023674,1711787433217,-157.033015,0.00046368,55]
[321023675,1711787433227,-157.033017,0.00046369,56]
[321023676,1711787433236,-157.033017,0.0004637,57]
[321023677,1711787433246,-157.033017,0.00046371,58]
[321023678,1711787433255,-157.033017,0.00046372,59]
[321023679,1711787433265,-157.033017,0.00046373,60]
[321023680,1711787433274,-157.033017,0.00046374,61]
[321023681,1711787433283,-225.52664281,0.00046375,18]
[321023682,1711787433293,-426.05733688,0.00046375,2]
[321023683,1711787433366,-196.3152204,0.00046375,2]
[321023684,1711787433376,-156.45797757,0.00046375,12]
[321023685,1711787433385,-155.41322359,0.00046389,4]
[321023686,1711787433395,-6448.03885865,0.0004639,2]
[321023691,1711787438536,-23900.0,0.00044564,2]
[321023692,1711787438546,-99672.47758696,0.0004639,2]
[321023693,1711787438557,-500.0,0.000464,16]
[321023694,1711787438567,-166.43,0.00046465,2]
[321023695,1711787438576,-222.48984184,0.00046475,2]
[321023696,1711787438589,-152.84328859,0.00046475,31]
[321023697,1711787438600,-82766.50878474,0.00046475,2]
[321023698,1711787440443,-11195.64121883,0.00046475,2]